[Event "Croatian 1A League 2022"]
[Site "Porec"]
[Date "2022.09.26"]
[Round "3.7"]
[White "Vavulin, Maxim"]
[Black "Erdos, Viktor"]
[Result "1/2-1/2"]
[ECO "C77"]
[WhiteElo "2550"]
[BlackElo "2597"]
[Annotator "RC"]
[PlyCount "64"]
[EventDate "2022.09.24"]
[EventType "team-tourn"]
[EventCountry "CRO"]
[SourceTitle "playchess.com"]
[Source "ChessBase"]
[SourceQuality "1"]
[TimeControl "40/5400+30:1800+30"]

1. e4 {[%emt 0:00:02]} e5 {[%emt 0:04:02]} 2. Nf3 {[%emt 0:00:09]} Nc6 {[%emt 0:00:11]} 3. Bb5 {[%emt 0:00:08]} a6 {[%emt 0:00:06]} 4. Ba4 {[%emt 0:00:09]} Nf6 {[%emt 0:00:06]} 5. O-O {[%emt 0:00:10]} Be7 {[%emt 0:00:05]} 6. d3 {[%emt 0:00:41]} d6 {[%emt 0:00:09]} 7. c3 {[%emt 0:00:13]} O-O {[%emt 0:00:08]} 8. Re1 {[%emt 0:00:22]} Re8 {[%emt 0:00:24]} 9. Nbd2 {[%emt 0:00:15]} Bf8 {[%emt 0:00:09]} 10. Nf1 {[%emt 0:00:09]} h6 {[%emt 0:00:40]} 11. Ng3 {[%emt 0:00:17]} b5 {[%emt 0:00:31]} 12. Bc2 {[%emt 0:00:38]} d5 {[%emt 0:14:27]} 13. exd5 {[%emt 0:00:08]} Qxd5 {[%emt 0:00:12]} 14. d4 {[%emt 0:00:45]} Bb7 {[%emt 0:00:11]} 15. Ne4 {[%emt 0:20:49]} Qd8 {[%emt 0:00:18]} 16. Qd3 {[%emt 0:23:41]} g6 {[%emt 0:00:33]} 17. dxe5 {[%emt 0:10:29]} Nxe4 {[%emt 0:01:57]} 18. Qxd8 {[%emt 0:00:45]} Raxd8 {[%emt 0:00:10]} 19. Rxe4 {[%emt 0:00:28]} Na5 {[%emt 0:11:19]} 20. Re1 {[%emt 0:17:05]} Nc4 {[%emt 0:09:44]} 21. b3 {[%emt 0:15:29]} Na3 {[%emt 0:04:54]} 22. Bd1 {[%emt 0:00:15]} b4 {[%emt 0:26:18]} 23. cxb4 {[%emt 0:03:05]} Bxb4 {[%emt 0:00:21]} 24. Bxa3 {[%emt 0:00:14]} Bxa3 {[%emt 0:00:35]} 25. Be2 {[%emt 0:00:36]} a5 {[%emt 0:13:56]} 26. Bc4 {[%emt 0:02:23]} Bxf3 {[%emt 0:03:51]} 27. gxf3 {[%emt 0:00:13]} Bb2 {[%emt 0:00:05]} 28. e6 {[%emt 0:03:38]} fxe6 {[%emt 0:00:10]} 29. Rad1 {[%emt 0:00:39]} Rd6 {[%emt 0:02:04]} 30. Rxd6 {[%emt 0:00:43]} cxd6 {[%emt 0:00:03]} 31. Rxe6 {[%emt 0:00:43]} Rxe6 {[%emt 0:00:12]} 32. Bxe6+ {[%emt 0:00:02]} Kg7 {[%emt 0:00:09]} 1/2-1/2

[Event "Croatian 1A League 2022"]
[Site "Porec"]
[Date "2022.09.26"]
[Round "3.8"]
[White "Nemeth, Miklos"]
[Black "Fercec, Nenad"]
[Result "1/2-1/2"]
[ECO "B53"]
[WhiteElo "2459"]
[BlackElo "2403"]
[Annotator "ChessBase"]
[PlyCount "79"]
[EventDate "2022.09.24"]
[EventType "team-tourn"]
[EventCountry "CRO"]
[SourceTitle "playchess.com"]
[Source "ChessBase"]
[SourceQuality "1"]
[TimeControl "40/5400+30:1800+30"]

1. e4 {[%emt 0:03:18]} c5 {[%emt 0:00:22]} 2. Nf3 {[%emt 0:00:06]} d6 {[%emt 0:00:10]} 3. d4 {[%emt 0:00:05]} cxd4 {[%emt 0:00:06]} 4. Qxd4 {[%emt 0:00:04]} a6 {[%emt 0:00:40]} 5. Be2 {[%emt 0:02:53]} Nc6 {[%emt 0:00:15]} 6. Qe3 {[%emt 0:00:07]} g6 {[%emt 0:01:04]} 7. O-O {[%emt 0:00:39]} Bg7 {[%emt 0:00:30]} 8. h3 {[%emt 0:00:34]} Nf6 {[%emt 0:00:09]} 9. Rd1 {[%emt 0:00:25]} O-O {[%emt 0:01:12]} 10. Nc3 {[%emt 0:09:07]} Be6 {[%emt 0:03:41]} 11. a3 {[%emt 0:06:25]} Rc8 {[%emt 0:00:19]} 12. Bf1 {[%emt 0:06:40]} Qc7 {[%emt 0:05:44]} 13. Qf4 {[%emt 0:15:29]} Ne5 {[%emt 0:06:00]} 14. Nxe5 {[%emt 0:06:35]} Nh5 {[%emt 0:03:03]} 15. Qh4 {[%emt 0:06:45]} Bxe5 {[%emt 0:00:19]} 16. Be2 {[%emt 0:01:34]} Nf6 {[%emt 0:02:09]} 17. Bd3 {[%emt 0:04:26]} Nd7 {[%emt 0:09:19]} 18. Bd2 {[%emt 0:09:03]} Nb6 {[%emt 0:03:04]} 19. f4 {[%emt 0:02:57]} Bd4+ {[%emt 0:09:46]} 20. Kh1 {[%emt 0:00:13]} Nc4 {[%emt 0:00:18]} 21. Bxc4 {[%emt 0:02:09]} Bxc4 {[%emt 0:00:55]} 22. f5 {[%emt 0:00:40]} Rfe8 {[%emt 0:00:55]} 23. Rab1 {[%emt 0:03:17]} Bf6 {[%emt 0:17:18]} 24. Qg4 {[%emt 0:02:10]} e6 {[%emt 0:02:55]} 25. fxg6 {[%emt 0:03:31]} hxg6 {[%emt 0:02:23]} 26. Bf4 {[%emt 0:01:34]} Red8 {[%emt 0:02:15]} 27. Qg3 {[%emt 0:01:39]} e5 {[%emt 0:04:37]} 28. Be3 {[%emt 0:00:59]} Qe7 {[%emt 0:00:34]} 29. Rd2 {[%emt 0:00:36]} Kg7 {[%emt 0:01:50]} 30. Rbd1 {[%emt 0:01:13]} Rc6 {[%emt 0:02:10]} 31. Qf2 {[%emt 0:01:43]} Rh8 {[%emt 0:00:30]} 32. Nd5 {[%emt 0:01:21]} Bxd5 {[%emt 0:00:03]} 33. Rxd5 {[%emt 0:00:04]} Rh4 {[%emt 0:00:30]} 34. Qe2 {[%emt 0:00:45]} b5 {[%emt 0:06:43]} 35. Qd3 {[%emt 0:01:23]} Qc7 {[%emt 0:01:22]} 36. Bf2 {[%emt 0:02:25]} Rh8 {[%emt 0:00:04]} 37. c3 {[%emt 0:00:11]} Be7 {[%emt 0:00:10]} 38. Bg3 {[%emt 0:00:47]} Qc8 {[%emt 0:01:49]} 39. Rf1 {[%emt 0:00:00]} Qe6 {[%emt 0:00:00]} 40. b3 {[%emt 0:00:00]} 1/2-1/2

[Event "Croatian 1A League 2022"]
[Site "Porec"]
[Date "2022.09.26"]
[Round "3.9"]
[White "Krsnik Cohar, Ivan Vihor"]
[Black "Muse, Drazen"]
[Result "1-0"]
[ECO "B20"]
[WhiteElo "2296"]
[BlackElo "2311"]
[Annotator "RC"]
[PlyCount "85"]
[EventDate "2022.09.24"]
[EventType "team-tourn"]
[EventCountry "CRO"]
[SourceTitle "playchess.com"]
[Source "ChessBase"]
[SourceQuality "1"]
[TimeControl "40/5400+30:1800+30"]

1. e4 {[%emt 0:01:50]} c5 {[%emt 0:00:10]} 2. g3 {[%emt 0:00:09]} d5 {[%emt 0:00:55]} 3. exd5 {[%emt 0:00:05]} Qxd5 {[%emt 0:00:04]} 4. Nf3 {[%emt 0:00:13]} Bg4 {[%emt 0:02:21]} 5. Bg2 {[%emt 0:00:39]} Qe6+ {[%emt 0:00:13]} 6. Kf1 {[%emt 0:00:07]} Nc6 {[%emt 0:00:28]} 7. d3 {[%emt 0:00:11]} Bh3 {[%emt 0:03:12]} 8. Be3 {[%emt 0:05:09]} Bxg2+ {[%emt 0:00:36]} 9. Kxg2 {[%emt 0:00:07]} b6 {[%emt 0:01:16]} 10. Nc3 {[%emt 0:00:42]} Nf6 {[%emt 0:00:12]} 11. Re1 {[%emt 0:15:03]} Qd7 {[%emt 0:01:08]} 12. d4 {[%emt 0:06:47]} cxd4 {[%emt 0:00:12]} 13. Nxd4 {[%emt 0:00:09]} Nxd4 {[%emt 0:00:23]} 14. Bxd4 {[%emt 0:01:30]} Qc6+ {[%emt 0:00:41]} 15. Qf3 {[%emt 0:00:32]} Qxf3+ {[%emt 0:00:08]} 16. Kxf3 {[%emt 0:00:02]} O-O-O {[%emt 0:01:21]} 17. Bxf6 {[%emt 0:05:43]} gxf6 {[%emt 0:00:59]} 18. Rad1 {[%emt 0:06:12]} Rxd1 {[%emt 0:00:19]} 19. Rxd1 {[%emt 0:00:01]} e6 {[%emt 0:00:37]} 20. Rd4 {[%emt 0:00:08]} f5 {[%emt 0:03:35]} 21. Rc4+ {[%emt 0:13:01]} Kb8 {[%emt 0:00:25]} 22. Rd4 {[%emt 0:00:04]} Kc8 {[%emt 0:00:07]} 23. Nb5 {[%emt 0:00:29]} a6 {[%emt 0:03:10]} 24. Nd6+ {[%emt 0:01:50]} Bxd6 {[%emt 0:00:06]} 25. Rxd6 {[%emt 0:00:06]} Kc7 {[%emt 0:00:04]} 26. Rd4 {[%emt 0:00:04]} h5 {[%emt 0:01:29]} 27. Rh4 {[%emt 0:01:59]} Kd6 {[%emt 0:00:16]} 28. Ke3 {[%emt 0:01:10]} Ke5 {[%emt 0:01:08]} 29. h3 {[%emt 0:00:25]} Kf6 {[%emt 0:00:43]} 30. c3 {[%emt 0:01:42]} e5 {[%emt 0:11:23]} 31. g4 {[%emt 0:04:22]} Rg8 {[%emt 0:00:43]} 32. Rxh5 {[%emt 0:00:32]} fxg4 {[%emt 0:00:05]} 33. hxg4 {[%emt 0:00:08]} Rxg4 {[%emt 0:00:22]} 34. Rh6+ {[%emt 0:00:04]} Rg6 {[%emt 0:00:21]} 35. Rxg6+ {[%emt 0:01:14]} Kxg6 {[%emt 0:07:25]} 36. Ke4 {[%emt 0:01:53]} Kf6 {[%emt 0:00:10]} 37. Kd5 {[%emt 0:00:39]} Kf5 {[%emt 0:00:05]} 38. c4 {[%emt 0:00:16]} e4 {[%emt 0:01:35]} 39. b4 {[%emt 0:00:12]} Kf4 {[%emt 0:00:05]} 40. c5 {[%emt 0:00:00]} bxc5 {[%emt 0:00:00]} 41. bxc5 {[%emt 0:00:19]} Kf3 {[%emt 0:00:06]} 42. c6 {[%emt 0:00:15]} f5 {[%emt 0:00:10]} 43. c7 {[%emt 0:00:00]} 1-0

[Event "Croatian 1A League 2022"]
[Site "Porec"]
[Date "2022.09.26"]
[Round "3.10"]
[White "Trbojevic, Mladen"]
[Black "Zufic, Miroslav"]
[Result "1-0"]
[ECO "B06"]
[WhiteElo "2332"]
[BlackElo "2370"]
[Annotator "RC"]
[PlyCount "55"]
[EventDate "2022.09.24"]
[EventType "team-tourn"]
[EventCountry "CRO"]
[SourceTitle "playchess.com"]
[Source "ChessBase"]
[SourceQuality "1"]
[TimeControl "40/5400+30:1800+30"]

1. e4 {[%emt 0:00:33]} c5 {[%emt 0:00:17]} 2. c3 {[%emt 0:00:19]} d5 {[%emt 0:00:21]} 3. exd5 {[%emt 0:00:22]} Qxd5 {[%emt 0:00:02]} 4. d4 {[%emt 0:00:58]} g6 {[%emt 0:00:43]} 5. Nf3 {[%emt 0:01:39]} Bg7 {[%emt 0:00:30]} 6. Na3 {[%emt 0:01:32]} cxd4 {[%emt 0:00:44]} 7. Nb5 {[%emt 0:01:43]} Na6 {[%emt 0:01:50]} 8. Nbxd4 {[%emt 0:00:55]} Nf6 {[%emt 0:03:53]} 9. Bb5+ {[%emt 0:01:12]} Bd7 {[%emt 0:01:04]} 10. Bxa6 {[%emt 0:00:20]} bxa6 {[%emt 0:00:05]} 11. O-O {[%emt 0:00:08]} O-O {[%emt 0:04:34]} 12. Re1 {[%emt 0:00:31]} Rfe8 {[%emt 0:08:47]} 13. Ne5 {[%emt 0:02:25]} Rab8 {[%emt 0:07:09]} 14. h3 {[%emt 0:14:55]} Red8 {[%emt 0:25:23]} 15. Qe2 {[%emt 0:14:58]} Bb5 {[%emt 0:07:19]} 16. Nxb5 {[%emt 0:12:25]} axb5 {[%emt 0:00:38]} 17. Bf4 {[%emt 0:00:50]} Qb7 {[%emt 0:20:58]} 18. a4 {[%emt 0:25:10]} Nd5 {[%emt 0:05:42]} 19. Bg3 {[%emt 0:00:39]} bxa4 {[%emt 0:03:43]} 20. c4 {[%emt 0:04:40]} Nb4 {[%emt 0:03:23]} 21. Rxa4 {[%emt 0:03:01]} Rbc8 {[%emt 0:01:03]} 22. Qe4 {[%emt 0:05:24]} Qxe4 {[%emt 0:01:14]} 23. Rxe4 {[%emt 0:00:02]} Rd1+ {[%emt 0:01:41]} 24. Kh2 {[%emt 0:00:39]} Bxe5 {[%emt 0:00:36]} 25. Rxe5 {[%emt 0:01:16]} Nc6 {[%emt 0:00:32]} 26. Rc5 {[%emt 0:00:12]} Rdd8 {[%emt 0:00:31]} 27. b4 {[%emt 0:02:06]} a6 {[%emt 0:00:25]} 28. b5 {[%emt 0:00:55]} 1-0

[Event "Croatian 1A League 2022"]
[Site "Porec"]
[Date "2022.09.26"]
[Round "3.11"]
[White "Franic, Milan"]
[Black "Krstic, Uros"]
[Result "1/2-1/2"]
[ECO "A42"]
[WhiteElo "2365"]
[BlackElo "2323"]
[Annotator "RC"]
[PlyCount "124"]
[EventDate "2022.09.24"]
[EventType "team-tourn"]
[EventCountry "CRO"]
[SourceTitle "playchess.com"]
[Source "ChessBase"]
[SourceQuality "1"]
[TimeControl "40/5400+30:1800+30"]

1. d4 {[%emt 0:00:07]} g6 {[%emt 0:00:10]} 2. c4 {[%emt 0:04:01]} Bg7 {[%emt 0:00:05]} 3. Nc3 {[%emt 0:00:05]} d6 {[%emt 0:00:22]} 4. e4 {[%emt 0:00:50]} e5 {[%emt 0:00:11]} 5. Be3 {[%emt 0:01:38]} exd4 {[%emt 0:00:57]} 6. Bxd4 {[%emt 0:00:06]} Nf6 {[%emt 0:00:09]} 7. f3 {[%emt 0:11:51]} O-O {[%emt 0:08:45]} 8. Nge2 {[%emt 0:02:26]} a6 {[%emt 0:24:22]} 9. Qd2 {[%emt 0:05:05]} b5 {[%emt 0:07:29]} 10. Ng3 {[%emt 0:02:22]} h5 {[%emt 0:14:45]} 11. h4 {[%emt 0:15:37]} Nc6 {[%emt 0:14:25]} 12. Bf2 {[%emt 0:00:09]} bxc4 {[%emt 0:05:48]} 13. Bxc4 {[%emt 0:00:29]} Ne5 {[%emt 0:00:05]} 14. Be2 {[%emt 0:00:31]} Be6 {[%emt 0:01:05]} 15. Rd1 {[%emt 0:02:29]} a5 {[%emt 0:02:30]} 16. Nf1 {[%emt 0:05:23]} Nc4 {[%emt 0:04:08]} 17. Qc1 {[%emt 0:01:30]} a4 {[%emt 0:06:11]} 18. Ne3 {[%emt 0:17:23]} Bh6 {[%emt 0:02:19]} 19. Bxc4 {[%emt 0:00:08]} Bxc4 {[%emt 0:00:14]} 20. Qc2 {[%emt 0:00:06]} Ba6 {[%emt 0:02:17]} 21. Nxa4 {[%emt 0:06:55]} Qb8 {[%emt 0:01:31]} 22. Nc3 {[%emt 0:00:33]} c6 {[%emt 0:00:14]} 23. Rd4 {[%emt 0:16:03]} Re8 {[%emt 0:01:59]} 24. Kd1 {[%emt 0:01:45]} d5 {[%emt 0:00:11]} 25. Re1 {[%emt 0:00:50]} dxe4 {[%emt 0:01:17]} 26. fxe4 {[%emt 0:01:51]} Qe5 {[%emt 0:01:12]} 27. Nc4 {[%emt 0:00:59]} Qf4 {[%emt 0:00:46]} 28. Be3 {[%emt 0:01:02]} Qg4+ {[%emt 0:00:12]} 29. Kc1 {[%emt 0:00:37]} c5 {[%emt 0:00:24]} 30. Rd2 {[%emt 0:01:00]} Qxh4 {[%emt 0:00:30]} 31. Bxh6 {[%emt 0:00:54]} Qxe1+ {[%emt 0:00:03]} 32. Rd1 {[%emt 0:00:02]} Qg3 {[%emt 0:00:20]} 33. Nd6 {[%emt 0:00:13]} Re6 {[%emt 0:00:17]} 34. Qd2 {[%emt 0:00:26]} Rd8 {[%emt 0:00:51]} 35. Bf4 {[%emt 0:00:07]} Qg4 {[%emt 0:00:11]} 36. e5 {[%emt 0:00:39]} Ne8 {[%emt 0:00:06]} 37. Nce4 {[%emt 0:00:46]} Nxd6 {[%emt 0:00:44]} 38. Nxd6 {[%emt 0:00:10]} Kh7 {[%emt 0:01:32]} 39. Bg5 {[%emt 0:01:20]} Rd7 {[%emt 0:00:24]} 40. Bf6 {[%emt 0:00:00]} Bb5 {[%emt 0:00:00]} 41. Qe3 {[%emt 0:02:06]} Rdxd6 {[%emt 0:22:57]} 42. Rxd6 {[%emt 0:00:19]} Qc4+ {[%emt 0:00:07]} 43. Kd2 {[%emt 0:02:21]} Qxa2 {[%emt 0:01:32]} 44. Rxe6 {[%emt 0:08:20]} Qxb2+ {[%emt 0:01:30]} 45. Kd1 {[%emt 0:00:22]} Qb1+ {[%emt 0:00:33]} 46. Kd2 {[%emt 0:00:07]} Qa2+ {[%emt 0:01:14]} 47. Kd1 {[%emt 0:00:07]} Qd5+ {[%emt 0:00:36]} 48. Ke1 {[%emt 0:01:45]} fxe6 {[%emt 0:00:26]} 49. Qa3 {[%emt 0:00:48]} Qe4+ {[%emt 0:02:33]} 50. Kf2 {[%emt 0:01:53]} Qd4+ {[%emt 0:00:34]} 51. Kg3 {[%emt 0:01:58]} Qd3+ {[%emt 0:03:51]} 52. Qxd3 {[%emt 0:00:20]} Bxd3 {[%emt 0:00:01]} 53. Bg5 {[%emt 0:09:28]} c4 {[%emt 0:00:56]} 54. Kf3 {[%emt 0:02:35]} c3 {[%emt 0:00:40]} 55. Ke3 {[%emt 0:00:07]} Bf5 {[%emt 0:00:46]} 56. Kd4 {[%emt 0:00:20]} c2 {[%emt 0:00:14]} 57. g3 {[%emt 0:00:29]} Kg7 {[%emt 0:00:39]} 58. Kc5 {[%emt 0:00:06]} Kf7 {[%emt 0:00:05]} 59. Kd6 {[%emt 0:00:09]} Ke8 {[%emt 0:00:05]} 60. Kc7 {[%emt 0:00:10]} Be4 {[%emt 0:00:30]} 61. Kc8 {[%emt 0:00:17]} Bd5 {[%emt 0:01:15]} 62. Kc7 {[%emt 0:00:06]} Be4 {[%emt 0:00:34]} 1/2-1/2

[Event "Croatian 1A League 2022"]
[Site "Porec"]
[Date "2022.09.26"]
[Round "3.12"]
[White "Vernacki, Srdjan"]
[Black "Rubil, Marko"]
[Result "0-1"]
[ECO "A21"]
[WhiteElo "2280"]
[BlackElo "2270"]
[Annotator "RC"]
[PlyCount "122"]
[EventDate "2022.09.24"]
[EventType "team-tourn"]
[EventCountry "CRO"]
[SourceTitle "playchess.com"]
[Source "ChessBase"]
[SourceQuality "1"]
[TimeControl "40/5400+30:1800+30"]

1. c4 {[%emt 0:00:04]} f5 {[%emt 0:04:51]} 2. Nc3 {[%emt 0:00:07]} Nf6 {[%emt 0:00:08]} 3. g3 {[%emt 0:00:40]} g6 {[%emt 0:00:20]} 4. Bg2 {[%emt 0:00:06]} Bg7 {[%emt 0:00:09]} 5. e3 {[%emt 0:00:48]} O-O {[%emt 0:02:08]} 6. Nge2 {[%emt 0:00:40]} d6 {[%emt 0:08:59]} 7. O-O {[%emt 0:00:36]} e5 {[%emt 0:09:13]} 8. d3 {[%emt 0:00:27]} a5 {[%emt 0:13:15]} 9. b3 {[%emt 0:04:43]} Na6 {[%emt 0:01:43]} 10. Bb2 {[%emt 0:04:52]} c6 {[%emt 0:00:52]} 11. Rc1 {[%emt 0:17:13]} Bd7 {[%emt 0:01:52]} 12. Qd2 {[%emt 0:02:14]} Re8 {[%emt 0:07:26]} 13. Na4 {[%emt 0:09:11]} b6 {[%emt 0:20:16]} 14. Ba3 {[%emt 0:07:10]} d5 {[%emt 0:11:56]} 15. c5 {[%emt 0:09:08]} bxc5 {[%emt 0:01:05]} 16. Nxc5 {[%emt 0:05:02]} Nxc5 {[%emt 0:02:09]} 17. Bxc5 {[%emt 0:00:09]} a4 {[%emt 0:01:47]} 18. b4 {[%emt 0:05:24]} Bc8 {[%emt 0:05:22]} 19. a3 {[%emt 0:05:08]} Ba6 {[%emt 0:00:39]} 20. Rfd1 {[%emt 0:02:09]} Nd7 {[%emt 0:03:55]} 21. Bf1 {[%emt 0:08:13]} Nxc5 {[%emt 0:00:53]} 22. Rxc5 {[%emt 0:00:18]} Bb7 {[%emt 0:00:10]} 23. Rdc1 {[%emt 0:03:12]} Bf8 {[%emt 0:00:25]} 24. R5c2 {[%emt 0:00:31]} h5 {[%emt 0:00:32]} 25. d4 {[%emt 0:01:12]} e4 {[%emt 0:00:38]} 26. Nf4 {[%emt 0:01:36]} g5 {[%emt 0:02:07]} 27. Nxh5 {[%emt 0:00:55]} Re6 {[%emt 0:00:01]} 28. Be2 {[%emt 0:02:41]} Rh6 {[%emt 0:00:46]} 29. g4 {[%emt 0:01:03]} Bd6 {[%emt 0:00:50]} 30. gxf5 {[%emt 0:03:31]} g4 {[%emt 0:00:23]} 31. Bxg4 {[%emt 0:05:32]} Qg5 {[%emt 0:00:10]} 32. Kh1 {[%emt 0:00:57]} Rxh5 {[%emt 0:00:54]} 33. Bxh5 {[%emt 0:00:05]} Qxh5 {[%emt 0:00:02]} 34. Rg1+ {[%emt 0:00:39]} Kf7 {[%emt 0:00:01]} 35. Rg2 {[%emt 0:00:42]} Rh8 {[%emt 0:01:20]} 36. Qe2 {[%emt 0:00:49]} Qxf5 {[%emt 0:00:18]} 37. Qg4 {[%emt 0:00:32]} Rxh2+ {[%emt 0:00:34]} 38. Kg1 {[%emt 0:00:01]} Qxg4 {[%emt 0:00:48]} 39. Rxg4 {[%emt 0:00:02]} Bc8 {[%emt 0:00:17]} 40. Rg2 {[%emt 0:00:00]} Rh6 {[%emt 0:00:00]} 41. b5 {[%emt 0:14:27]} Bh3 {[%emt 0:13:04]} 42. Rxc6 {[%emt 0:13:08]} Bxg2 {[%emt 0:01:26]} 43. Kxg2 {[%emt 0:00:02]} Rg6+ {[%emt 0:00:18]} 44. Kf1 {[%emt 0:00:01]} Bxa3 {[%emt 0:08:21]} 45. Ra6 {[%emt 0:00:03]} Be7 {[%emt 0:00:14]} 46. Rxa4 {[%emt 0:03:52]} Rb6 {[%emt 0:00:02]} 47. f3 {[%emt 0:07:18]} Rf6 {[%emt 0:04:35]} 48. b6 {[%emt 0:00:00]} Rxf3+ {[%emt 0:01:11]} 49. Ke2 {[%emt 0:00:00]} Rg3 {[%emt 0:02:24]} 50. Ra5 {[%emt 0:00:00]} Rg2+ {[%emt 0:03:14]} 51. Kf1 {[%emt 0:00:00]} Rb2 {[%emt 0:00:50]} 52. Rxd5 {[%emt 0:00:00]} Rxb6 {[%emt 0:00:05]} 53. Kg2 {[%emt 0:00:00]} Rg6+ {[%emt 0:00:17]} 54. Kh3 {[%emt 0:00:00]} Bd6 {[%emt 0:00:04]} 55. Kh4 {[%emt 0:00:00]} Ke6 {[%emt 0:00:08]} 56. Rh5 {[%emt 0:00:17]} Rg1 {[%emt 0:01:39]} 57. d5+ {[%emt 0:00:57]} Kf6 {[%emt 0:00:23]} 58. Rh6+ {[%emt 0:00:22]} Rg6 {[%emt 0:00:43]} 59. Rh8 {[%emt 0:00:23]} Be7 {[%emt 0:00:26]} 60. Re8 {[%emt 0:00:43]} Kf7+ {[%emt 0:00:12]} 61. Kh5 {[%emt 0:00:33]} Rg5+ {[%emt 0:00:01]} 0-1

[Event "Croatian 1A League 2022"]
[Site "Porec"]
[Date "2022.09.26"]
[Round "3.13"]
[White "Kadric, Denis"]
[Black "Donchenko, Alexander"]
[Result "1-0"]
[ECO "B25"]
[WhiteElo "2561"]
[BlackElo "2639"]
[Annotator "RC"]
[PlyCount "129"]
[EventDate "2022.09.24"]
[EventType "team-tourn"]
[EventCountry "CRO"]
[SourceTitle "playchess.com"]
[Source "ChessBase"]
[SourceQuality "1"]
[TimeControl "40/5400+30:1800+30"]

1. e4 {[%emt 0:01:52]} c5 {[%emt 0:00:10]} 2. Nc3 {[%emt 0:00:19]} d6 {[%emt 0:00:15]} 3. Nge2 {[%emt 0:00:05]} Nf6 {[%emt 0:01:01]} 4. g3 {[%emt 0:00:07]} g6 {[%emt 0:00:33]} 5. Bg2 {[%emt 0:00:06]} Nc6 {[%emt 0:00:44]} 6. O-O {[%emt 0:00:17]} Bg7 {[%emt 0:00:14]} 7. d3 {[%emt 0:00:02]} O-O {[%emt 0:00:45]} 8. h3 {[%emt 0:00:07]} Rb8 {[%emt 0:04:28]} 9. f4 {[%emt 0:00:15]} Nd7 {[%emt 0:02:08]} 10. a4 {[%emt 0:00:31]} a6 {[%emt 0:04:17]} 11. Nd5 {[%emt 0:00:45]} b5 {[%emt 0:05:25]} 12. axb5 {[%emt 0:00:08]} axb5 {[%emt 0:00:06]} 13. c3 {[%emt 0:00:02]} b4 {[%emt 0:05:48]} 14. f5 {[%emt 0:00:20]} bxc3 {[%emt 0:20:55]} 15. bxc3 {[%emt 0:00:14]} e6 {[%emt 0:04:26]} 16. Ne3 {[%emt 0:00:07]} Bb7 {[%emt 0:04:49]} 17. Rb1 {[%emt 0:01:32]} Na5 {[%emt 0:06:50]} 18. fxe6 {[%emt 0:22:49]} fxe6 {[%emt 0:00:08]} 19. Rxf8+ {[%emt 0:00:05]} Nxf8 {[%emt 0:04:44]} 20. Ng4 {[%emt 0:03:54]} Kh8 {[%emt 0:02:13]} 21. Nh6 {[%emt 0:02:49]} Qd7 {[%emt 0:03:19]} 22. Qf1 {[%emt 0:08:07]} Nc6 {[%emt 0:00:53]} 23. Bg5 {[%emt 0:01:05]} Ba6 {[%emt 0:06:43]} 24. Rxb8 {[%emt 0:02:51]} Nxb8 {[%emt 0:00:03]} 25. c4 {[%emt 0:08:16]} Nc6 {[%emt 0:00:30]} 26. Qf7 {[%emt 0:07:22]} Qxf7 {[%emt 0:00:06]} 27. Nxf7+ {[%emt 0:00:02]} Kg8 {[%emt 0:00:06]} 28. Nxd6 {[%emt 0:00:02]} Nb4 {[%emt 0:01:23]} 29. Nc1 {[%emt 0:03:19]} Nd7 {[%emt 0:07:04]} 30. Kf2 {[%emt 0:04:31]} Bb2 {[%emt 0:03:16]} 31. Bf1 {[%emt 0:03:20]} Ne5 {[%emt 0:02:17]} 32. Bf4 {[%emt 0:01:06]} g5 {[%emt 0:02:35]} 33. Bxe5 {[%emt 0:00:04]} Bxe5 {[%emt 0:00:04]} 34. Nb5 {[%emt 0:00:01]} Kf7 {[%emt 0:01:03]} 35. Nb3 {[%emt 0:01:15]} Nc2 {[%emt 0:03:21]} 36. Na5 {[%emt 0:05:34]} Kf6 {[%emt 0:02:00]} 37. Be2 {[%emt 0:04:22]} h6 {[%emt 0:00:39]} 38. Bh5 {[%emt 0:01:38]} Nb4 {[%emt 0:00:08]} 39. Be2 {[%emt 0:00:40]} Nc2 {[%emt 0:00:10]} 40. Nb3 {[%emt 0:00:00]} Ke7 {[%emt 0:00:00]} 41. Nd2 {[%emt 0:12:31]} Kd7 {[%emt 0:08:55]} 42. Nf3 {[%emt 0:00:41]} Bg7 {[%emt 0:02:25]} 43. Bd1 {[%emt 0:01:27]} Bxb5 {[%emt 0:00:39]} 44. cxb5 {[%emt 0:05:36]} Nd4 {[%emt 0:00:20]} 45. Nd2 {[%emt 0:01:35]} Kc7 {[%emt 0:10:13]} 46. Ba4 {[%emt 0:00:03]} Bf6 {[%emt 0:00:35]} 47. Nc4 {[%emt 0:00:14]} Be7 {[%emt 0:00:43]} 48. b6+ {[%emt 0:05:30]} Kb7 {[%emt 0:00:27]} 49. Bd1 {[%emt 0:00:02]} Bd8 {[%emt 0:02:17]} 50. Nd6+ {[%emt 0:00:22]} Kxb6 {[%emt 0:00:03]} 51. Nf7 {[%emt 0:00:04]} Be7 {[%emt 0:00:54]} 52. Nxh6 {[%emt 0:00:32]} Kb5 {[%emt 0:00:26]} 53. Ke3 {[%emt 0:02:53]} Kb4 {[%emt 0:00:26]} 54. Bg4 {[%emt 0:03:07]} Kc3 {[%emt 0:00:40]} 55. e5 {[%emt 0:00:43]} Kc2 {[%emt 0:07:36]} 56. Ke4 {[%emt 0:01:31]} Kd2 {[%emt 0:01:43]} 57. Ng8 {[%emt 0:00:44]} Bd8 {[%emt 0:00:18]} 58. Nf6 {[%emt 0:00:18]} Nf5 {[%emt 0:03:20]} 59. Bxf5 {[%emt 0:01:08]} exf5+ {[%emt 0:00:02]} 60. Kxf5 {[%emt 0:00:05]} Kxd3 {[%emt 0:00:05]} 61. Kxg5 {[%emt 0:00:33]} c4 {[%emt 0:02:23]} 62. Kf5 {[%emt 0:00:03]} Kd4 {[%emt 0:00:50]} 63. Ne4 {[%emt 0:00:44]} c3 {[%emt 0:00:29]} 64. Nxc3 {[%emt 0:00:03]} Kxc3 {[%emt 0:00:04]} 65. h4 {[%emt 0:00:11]} 1-0

[Event "Croatian 1A League 2022"]
[Site "Porec"]
[Date "2022.09.26"]
[Round "3.14"]
[White "Livaic, Leon"]
[Black "Saric, Ibro"]
[Result "1/2-1/2"]
[ECO "C78"]
[WhiteElo "2565"]
[BlackElo "2542"]
[Annotator "RC"]
[PlyCount "52"]
[EventDate "2022.09.24"]
[EventType "team-tourn"]
[EventCountry "CRO"]
[SourceTitle "playchess.com"]
[Source "ChessBase"]
[SourceQuality "1"]
[TimeControl "40/5400+30:1800+30"]

1. e4 {[%emt 0:00:03]} e5 {[%emt 0:00:43]} 2. Nf3 {[%emt 0:00:06]} Nc6 {[%emt 0:01:01]} 3. Bb5 {[%emt 0:00:05]} a6 {[%emt 0:00:21]} 4. Ba4 {[%emt 0:00:05]} Nf6 {[%emt 0:00:04]} 5. Nc3 {[%emt 0:00:27]} Bd6 {[%emt 0:11:31]} 6. O-O {[%emt 0:20:42]} O-O {[%emt 0:01:49]} 7. d3 {[%emt 0:06:36]} h6 {[%emt 0:04:00]} 8. a3 {[%emt 0:01:50]} Re8 {[%emt 0:06:33]} 9. h3 {[%emt 0:08:58]} Bf8 {[%emt 0:02:45]} 10. Bb3 {[%emt 0:05:05]} d6 {[%emt 0:01:51]} 11. Re1 {[%emt 0:02:28]} Be6 {[%emt 0:19:32]} 12. Bxe6 {[%emt 0:02:01]} fxe6 {[%emt 0:00:37]} 13. Ne2 {[%emt 0:02:18]} d5 {[%emt 0:08:39]} 14. Ng3 {[%emt 0:00:06]} a5 {[%emt 0:00:39]} 15. a4 {[%emt 0:11:52]} Qd7 {[%emt 0:08:20]} 16. c3 {[%emt 0:00:23]} Rad8 {[%emt 0:02:56]} 17. Qb3 {[%emt 0:00:55]} b6 {[%emt 0:00:18]} 18. Bd2 {[%emt 0:05:55]} Bd6 {[%emt 0:04:20]} 19. Rad1 {[%emt 0:04:04]} Qf7 {[%emt 0:01:03]} 20. Re2 {[%emt 0:02:17]} Nd7 {[%emt 0:01:14]} 21. Qc2 {[%emt 0:01:59]} Ne7 {[%emt 0:02:07]} 22. d4 {[%emt 0:03:00]} Ng6 {[%emt 0:01:25]} 23. Nf1 {[%emt 0:04:17]} Nf6 {[%emt 0:04:39]} 24. Ng3 {[%emt 0:05:35]} Nd7 {[%emt 0:02:26]} 25. Nf1 {[%emt 0:00:15]} Nf6 {[%emt 0:05:00]} 26. Ng3 {[%emt 0:00:06]} Nd7 {[%emt 0:00:05]} 1/2-1/2